fUST/lending_fUST_20250817
["ID","MTS","AMOUNT","RATE_DAILY","PERIOD"]
[379749226,1755399042236,-196.210754,0.00020616,2]
[379749228,1755399042247,-196.210754,0.00020616,2]
[379749230,1755399042257,-196.210754,0.00020616,2]
[379749232,1755399042266,-196.210754,0.00020616,2]
[379749234,1755399042275,-151.0,0.00020616,2]
[379749236,1755399042288,-151.0,0.00020616,2]
[379749238,1755399042298,-151.0,0.00020616,2]
[379749240,1755399042307,-151.0,0.00020616,2]
[379749242,1755399042318,-151.0,0.00020616,2]
[379749244,1755399042329,-155.215154,0.00020616,2]
[379749246,1755399042338,-894.481672,0.00020616,2]
[379749248,1755399042347,-894.481672,0.00020616,2]
[379749250,1755399042357,-894.481672,0.00020616,2]
[379749252,1755399042366,-894.481672,0.00020616,2]
[379749254,1755399042375,-574.406437,0.00020616,2]
[379749256,1755399042384,-574.406437,0.00020616,2]
[379749258,1755399042394,-574.406437,0.00020616,2]
[379749260,1755399042404,-574.406437,0.00020616,2]
[379749262,1755399042412,-574.406437,0.00020616,2]
[379749264,1755399042421,-574.406437,0.00020616,2]
[379749266,1755399042430,-574.406437,0.00020616,2]
[379749268,1755399042441,-574.406437,0.00020616,2]
[379749270,1755399042450,-151.445689,0.00020616,2]
[379749272,1755399042459,-151.0,0.00020616,2]
[379749273,1755399042468,-152.460579,0.00020616,2]
[379749275,1755399042477,-152.017696,0.00020616,2]
[379749278,1755399042488,-151.0,0.00020616,2]
[379749280,1755399042497,-156.170024,0.00020616,2]
[379749282,1755399042506,-151.0,0.00020616,2]
[379749284,1755399042515,-151.0,0.00020616,2]
[379749285,1755399042524,-151.0,0.00020616,2]
[379749287,1755399042533,-151.0,0.00020616,2]
[379749289,1755399042542,-151.0,0.00020616,2]
[379749291,1755399042551,-151.0,0.00020616,2]
[379749293,1755399042560,-151.0,0.00020616,2]
[379749295,1755399042571,-205.128362,0.00020616,2]
[379749297,1755399042580,-151.0,0.00020616,2]
[379749299,1755399042589,-151.0,0.00020616,2]
[379749301,1755399042598,-151.0,0.00020616,2]
[379749303,1755399042608,-151.0,0.00020616,2]
[379749305,1755399042617,-151.0,0.00020616,2]
[379749307,1755399042626,-175.740867,0.00020616,2]
[379749309,1755399042636,-175.740867,0.00020616,2]
[379749311,1755399042645,-175.740867,0.00020616,2]
[379749313,1755399042654,-175.740867,0.00020616,2]
[379749315,1755399042663,-175.740867,0.00020616,2]
[379749317,1755399042672,-175.740867,0.00020616,2]
[379749319,1755399042681,-175.740867,0.00020616,2]
[379749321,1755399042691,-175.740867,0.00020616,2]
[379749323,1755399042701,-175.740867,0.00020616,2]
[379749325,1755399042710,-175.740867,0.00020616,2]
[379749327,1755399042720,-151.0,0.00020616,2]
[379749329,1755399042729,-151.0,0.00020616,2]
[379749331,1755399042738,-151.0,0.00020616,2]
[379749332,1755399042748,-151.0,0.00020616,2]
[379749333,1755399042757,-151.741426,0.00020616,2]
[379749334,1755399042767,-198.258784,0.00020616,2]
[379749335,1755399042776,-198.258784,0.00020616,2]
[379749336,1755399042786,-198.258784,0.00020616,2]
[379749337,1755399042795,-198.258784,0.00020616,2]
[379749338,1755399042804,-198.258784,0.00020616,2]
[379749339,1755399042814,-198.258784,0.00020616,2]
[379749340,1755399042823,-198.258784,0.00020616,2]
[379749341,1755399042832,-198.258784,0.00020616,2]
[379749342,1755399042841,-198.258784,0.00020616,2]
[379749343,1755399042850,-198.258784,0.00020616,2]
[379749344,1755399042859,-198.258784,0.00020616,2]
[379749345,1755399042867,-198.258784,0.00020616,2]
[379749346,1755399042876,-505.758608,0.00020616,2]
[379749347,1755399042885,-505.758608,0.00020616,2]
[379749348,1755399042894,-505.758608,0.00020616,2]
[379749349,1755399042903,-505.758608,0.00020616,2]
[379749350,1755399042912,-505.758608,0.00020616,2]
[379749351,1755399042921,-505.758608,0.00020616,2]
[379749352,1755399042931,-505.758608,0.00020616,2]
[379749354,1755399042940,-505.758608,0.00020616,2]
[379749355,1755399042951,-505.758608,0.00020616,2]
[379749356,1755399042963,-505.758608,0.00020616,2]
[379749357,1755399042973,-151.0,0.00020616,2]
[379749358,1755399042983,-151.0,0.00020616,2]
[379749359,1755399042994,-151.0,0.00020616,2]
[379749360,1755399043004,-151.0,0.00020616,2]
[379749361,1755399043013,-152.753718,0.00020616,2]
[379749363,1755399043023,-354.586636,0.00020616,2]
[379749364,1755399043032,-354.586636,0.00020616,2]
[379749365,1755399043042,-354.586636,0.00020616,2]
[379749367,1755399043051,-354.586636,0.00020616,2]
[379749368,1755399043060,-354.586636,0.00020616,2]
[379749369,1755399043071,-354.586636,0.00020616,2]
[379749370,1755399043080,-354.586636,0.00020616,2]
[379749371,1755399043089,-354.586636,0.00020616,2]
[379749372,1755399043098,-354.586636,0.00020616,2]
[379749373,1755399043108,-354.586636,0.00020616,2]
[379749374,1755399043117,-151.0,0.00020616,2]
[379749375,1755399043127,-151.0,0.00020616,2]
[379749376,1755399043136,-151.0,0.00020616,2]
[379749378,1755399043145,-151.0,0.00020616,2]
[379749379,1755399043155,-151.0,0.00020616,2]
[379749380,1755399043164,-151.0,0.00020616,2]
[379749382,1755399043174,-151.0,0.00020616,2]
[379749384,1755399043184,-151.0,0.00020616,2]
[379749385,1755399043194,-151.0,0.00020616,2]
[379749387,1755399043203,-151.0,0.00020616,2]
[379749389,1755399043212,-198.69863,0.00020616,2]
[379749391,1755399043222,-151.0,0.00020616,2]
[379749393,1755399043231,-151.0,0.00020616,2]
[379749395,1755399043241,-151.0,0.00020616,2]
[379749397,1755399043250,-151.0,0.00020616,2]
[379749399,1755399043259,-151.0,0.00020616,2]
[379749401,1755399043270,-151.0,0.00020616,2]
[379749403,1755399043288,-151.0,0.00020616,2]
[379749405,1755399043298,-151.0,0.00020616,2]
[379749407,1755399043308,-151.0,0.00020616,2]
[379749409,1755399043319,-177.2553,0.00020616,2]
[379749411,1755399043328,-151.0,0.00020616,2]
[379749413,1755399043337,-151.0,0.00020616,2]
[379749415,1755399043346,-151.0,0.00020616,2]
[379749417,1755399043356,-286.358532,0.00020616,2]
[379749419,1755399043366,-154.823684,0.00020616,2]
[379749421,1755399043375,-215.706431,0.00020616,2]
[379749422,1755399043385,-215.706431,0.00020616,2]
[379749424,1755399043395,-215.706431,0.00020616,2]
[379749426,1755399043405,-215.706431,0.00020616,2]
[379749428,1755399043414,-215.706431,0.00020616,2]
[379749430,1755399043424,-215.706431,0.00020616,2]
[379749432,1755399043434,-215.706431,0.00020616,2]
[379749434,1755399043443,-215.706431,0.00020616,2]
[379749437,1755399043453,-215.706431,0.00020616,2]
[379749439,1755399043462,-215.706431,0.00020616,2]
[379749442,1755399043472,-215.706431,0.00020616,2]
[379749444,1755399043482,-215.706431,0.00020616,2]
[379749446,1755399043491,-151.0,0.00020616,2]
[379749448,1755399043500,-151.0,0.00020616,2]
[379749450,1755399043509,-151.0,0.00020616,2]
[379749452,1755399043519,-285.514332,0.00020616,2]
[379749454,1755399043528,-185.0,0.00020616,2]
[379749457,1755399043537,-151.0,0.00020616,2]
[379749459,1755399043546,-151.0,0.00020616,2]
[379749461,1755399043555,-151.0,0.00020616,2]
[379749464,1755399043565,-664.217782,0.00020616,2]
[379749467,1755399043574,-664.217782,0.00020616,2]
[379749470,1755399043583,-664.217782,0.00020616,2]
[379749473,1755399043593,-664.217782,0.00020616,2]
[379749475,1755399043602,-664.217782,0.00020616,2]
[379749477,1755399043611,-664.217782,0.00020616,2]
[379749479,1755399043621,-664.217782,0.00020616,2]
[379749481,1755399043632,-664.217782,0.00020616,2]
[379749483,1755399043641,-664.217782,0.00020616,2]
[379749485,1755399043651,-664.217782,0.00020616,2]
[379749487,1755399043660,-664.217782,0.00020616,2]
[379749489,1755399043669,-664.217782,0.00020616,2]
[379749491,1755399043679,-172.732483,0.00020616,2]
[379749492,1755399043687,-12682.46447135,0.00020618,2]
[379749494,1755399043697,-232.1512529,0.00020618,2]
[379749496,1755399043707,-215.71995163,0.00020618,2]
[379749498,1755399043716,-528.48506731,0.00020618,2]
[379749500,1755399043725,-160.0,0.00020618,2]
[379749502,1755399043734,-843.71309931,0.00020618,2]
[379749504,1755399043743,-417.15472785,0.00020618,2]
[379749506,1755399043753,-462.21132165,0.00020618,2]
[379749508,1755399043762,-151.0,0.00020618,2]
[379749510,1755399043771,-160.0,0.00020619,2]
[379749512,1755399043781,-152.207456,0.00020621,2]
[379749514,1755399043790,-151.0,0.00020621,2]
[379749516,1755399043800,-151.0,0.00020621,2]
[379749518,1755399043809,-275.732984,0.00020621,2]
[379749520,1755399043818,-196.210754,0.00020621,2]
[379749522,1755399043828,-196.210754,0.00020621,2]
[379749524,1755399043837,-151.0,0.00020621,2]
[379749526,1755399043846,-894.481672,0.00020621,2]
[379749528,1755399043856,-894.481672,0.00020621,2]
[379749530,1755399043865,-574.406437,0.00020621,2]
[379749532,1755399043874,-574.406437,0.00020621,2]
[379749534,1755399043883,-151.0,0.00020621,2]
[379749536,1755399043892,-151.0,0.00020621,2]
[379749538,1755399043901,-151.0,0.00020621,2]
[379749540,1755399043911,-175.740867,0.00020621,2]
[379749542,1755399043920,-175.740867,0.00020621,2]
[379749544,1755399043929,-198.258784,0.00020621,2]
[379749546,1755399043938,-198.258784,0.00020621,2]
[379749548,1755399043948,-505.758608,0.00020621,2]
[379749549,1755399043957,-505.758608,0.00020621,2]
[379749551,1755399043967,-354.586636,0.00020621,2]
[379749553,1755399043976,-354.586627,0.00020621,2]
[379749555,1755399043986,-151.0,0.00020621,2]
[379749557,1755399043995,-215.706431,0.00020621,2]
[379749559,1755399044005,-215.706427,0.00020621,2]
[379749561,1755399044014,-664.217782,0.00020621,2]
[379749563,1755399044023,-664.21779,0.00020621,2]
[379749565,1755399044032,-151.0,0.00020622,2]
[379749567,1755399044041,-295.81924,0.00020622,2]
[379749569,1755399044050,-151.0,0.00020622,2]
[379749571,1755399044060,-152.54273,0.00020622,2]
[379749573,1755399044070,-275.732984,0.00020622,2]
[379749575,1755399044079,-275.732984,0.00020622,2]
[379749577,1755399044089,-196.210754,0.00020622,2]
[379749579,1755399044098,-196.210754,0.00020622,2]
[379749581,1755399044108,-196.210754,0.00020622,2]
[379749583,1755399044117,-196.210754,0.00020622,2]
[379749585,1755399044126,-894.481672,0.00020622,2]
[379749587,1755399044135,-894.481672,0.00020622,2]
[379749589,1755399044145,-168.0,0.00020625,2]
[379749591,1755399044154,-151.0,0.00020625,2]
[379749593,1755399044164,-574.406437,0.00020625,2]
[379749595,1755399044175,-574.406437,0.00020625,2]
[379749597,1755399044184,-151.0,0.00020634,2]
[379749599,1755399044193,-168.0,0.00020635,2]
[379749600,1755399044203,-156.37978624,0.00020685,2]
[379749602,1755399044213,-151.0,0.00020685,2]
[379749604,1755399044223,-198.258784,0.00020685,2]
[379749606,1755399044232,-198.258781,0.00020685,2]
[379749608,1755399044243,-151.0,0.00020699,2]
[379749610,1755399044252,-894.481672,0.00020699,2]
[379749612,1755399044261,-894.481672,0.00020699,2]
[379749614,1755399044271,-505.758608,0.00020699,2]
[379749616,1755399044283,-505.758606,0.00020699,2]
[379749618,1755399044293,-275.732984,0.000207,2]
[379749620,1755399044302,-275.732984,0.000207,2]
[379749622,1755399044312,-275.732984,0.000207,2]
[379749624,1755399044321,-275.732993,0.000207,2]
[379749626,1755399044330,-587.487889,0.000207,2]
[379749628,1755399044339,-196.210754,0.000207,2]
[379749630,1755399044349,-196.210754,0.000207,2]
[379749632,1755399044358,-196.210754,0.000207,2]
[379749634,1755399044367,-196.210755,0.000207,2]
[379749636,1755399044376,-151.0,0.000207,2]
[379749638,1755399044385,-431.9034523,0.000207,2]
[379749640,1755399044394,-574.406437,0.000207,2]
[379749642,1755399044404,-574.406437,0.000207,2]
[379749644,1755399044412,-431.9034523,0.000207,2]
[379749646,1755399044421,-431.9034523,0.000207,2]
[379749648,1755399044430,-151.0,0.000207,2]
[379749650,1755399044439,-293.7439445,0.000207,2]
[379749651,1755399044448,-431.9034523,0.000207,2]
[379749653,1755399044457,-431.9034523,0.000207,2]
[379749655,1755399044466,-293.7439445,0.000207,2]
[379749657,1755399044475,-863.8069046,0.000207,2]
[379749659,1755399044485,-293.7439445,0.000207,2]
[379749661,1755399044494,-431.9034523,0.000207,2]
[379749663,1755399044503,-293.7439445,0.000207,2]
[379749665,1755399044513,-431.9034523,0.000207,2]
[379749667,1755399044522,-175.740867,0.000207,2]
[379749669,1755399044532,-175.740867,0.000207,2]
[379749671,1755399044541,-293.7439445,0.000207,2]
[379749673,1755399044550,-431.9034523,0.000207,2]
[379749675,1755399044559,-153.0,0.000207,2]
[379749677,1755399044569,-431.9034523,0.000207,2]
[379749679,1755399044579,-431.9034523,0.000207,2]
[379749681,1755399044588,-160.7608968,0.000207,2]
[379749683,1755399044597,-698.02006557,0.000207,2]
[379749685,1755399044606,-293.7439445,0.000207,2]
[379749687,1755399044616,-160.7608968,0.000207,2]
[379749689,1755399044625,-160.7608968,0.000207,2]
[379749691,1755399044634,-803.9019335,0.000207,2]
[379749693,1755399044644,-293.7439445,0.000207,2]
[379749695,1755399044653,-160.7608968,0.000207,2]
[379749697,1755399044662,-431.9034523,0.000207,2]
[379749699,1755399044671,-293.7439445,0.000207,2]
[379749701,1755399044681,-431.9034523,0.000207,2]
[379749703,1755399044691,-160.7608968,0.000207,2]
[379749705,1755399044700,-162.9307274,0.000207,2]
[379749707,1755399044709,-298.1776805,0.000207,2]
[379749709,1755399044718,-587.4269931,0.000207,2]
[379749711,1755399044727,-431.9034523,0.000207,2]
[379749713,1755399044737,-160.7608968,0.000207,2]
[379749715,1755399044746,-293.7439445,0.000207,2]
[379749716,1755399044755,-431.9034523,0.000207,2]
[379749718,1755399044764,-160.7608968,0.000207,2]
[379749720,1755399044773,-160.7608968,0.000207,2]
[379749722,1755399044782,-431.9034523,0.000207,2]
[379749724,1755399044791,-151.0,0.00020711,2]
[379749726,1755399044800,-480.0,0.0002073,2]
[379749728,1755399044809,-480.0,0.0002073,2]
[379749730,1755399044818,-828.71,0.0002073,2]
[379749732,1755399044827,-1243.05,0.00020731,2]
[379749734,1755399044836,-480.0,0.00020731,2]
[379749736,1755399044847,-631.2,0.00020731,2]
[379749738,1755399044856,-1167.4,0.00020731,2]
[379749740,1755399044865,-480.0,0.00020731,2]
[379749742,1755399044875,-618.63,0.00020731,2]
[379749744,1755399044884,-480.0,0.00020731,2]
[379749746,1755399044894,-480.0,0.00020731,2]
[379749748,1755399044904,-480.0,0.00020731,2]
[379749750,1755399044915,-530.84,0.00020731,2]
[379749752,1755399044924,-480.0,0.00020732,2]
[379749754,1755399044933,-480.64,0.00020732,2]
[379749756,1755399044943,-480.0,0.00020732,2]
[379749758,1755399044952,-480.0,0.00020732,2]
[379749760,1755399044962,-1745.0,0.00020732,2]
[379749762,1755399044972,-480.0,0.00020732,2]
[379749764,1755399044981,-3264.95,0.00020732,2]
[379749766,1755399044991,-480.0,0.00020732,2]
[379749768,1755399045000,-480.0,0.00020732,2]
[379749770,1755399045010,-480.0,0.00020732,2]
[379749772,1755399045020,-1105.45,0.00020732,2]
[379749774,1755399045030,-444.49284326,0.00020732,2]
[379749776,1755399045040,-480.0,0.00020732,2]
[379749778,1755399045050,-480.0,0.00020732,2]
[379749780,1755399045059,-480.0,0.00020732,2]
[379749781,1755399045068,-480.0,0.00020732,2]
[379749784,1755399045079,-480.0,0.00020732,2]
[379749785,1755399045089,-480.0,0.00020732,2]
[379749787,1755399045098,-848.53,0.00020732,2]
[379749789,1755399045111,-480.0,0.00020732,2]
[379749791,1755399045120,-651.68,0.00020732,2]
[379749793,1755399045130,-480.0,0.00020732,2]
[379749795,1755399045140,-480.0,0.00020732,2]
[379749797,1755399045149,-480.0,0.00020732,2]
[379749799,1755399045159,-480.0,0.00020732,2]
[379749801,1755399045168,-891.0,0.00020733,2]
[379749803,1755399045178,-215.432536,0.00020733,2]
[379749805,1755399045188,-894.481672,0.00020733,2]
[379749807,1755399045197,-894.481672,0.00020733,2]
[379749809,1755399045206,-574.406437,0.00020733,2]
[379749811,1755399045215,-574.406437,0.00020733,2]
[379749813,1755399045224,-480.0,0.00020733,2]
[379749815,1755399045234,-480.0,0.00020733,2]
[379749817,1755399045243,-480.0,0.00020733,2]
[379749819,1755399045253,-480.0,0.00020733,2]
[379749821,1755399045262,-175.740867,0.00020733,2]
[379749823,1755399045271,-175.740867,0.00020733,2]
[379749825,1755399045282,-480.0,0.00020733,2]
[379749827,1755399045291,-480.0,0.00020733,2]
[379749829,1755399045300,-480.0,0.00020733,2]
[379749831,1755399045310,-497.14,0.00020733,2]
[379749833,1755399045319,-480.0,0.00020733,2]
[379749835,1755399045327,-480.0,0.00020733,2]
[379749837,1755399045336,-480.0,0.00020733,2]
[379749839,1755399045345,-480.0,0.00020733,2]
[379749841,1755399045354,-480.0,0.00020733,2]
[379749842,1755399045363,-480.0,0.00020733,2]
[379749844,1755399045372,-480.0,0.00020733,2]
[379749846,1755399045381,-480.0,0.00020733,2]
[379749848,1755399045391,-480.0,0.00020733,2]
[379749850,1755399045400,-151.0,0.00020734,2]
[379749852,1755399045409,-151.0,0.00020734,2]
[379749854,1755399045418,-894.481672,0.00020734,2]
[379749856,1755399045427,-894.481672,0.00020734,2]
[379749858,1755399045437,-574.406437,0.00020734,2]
[379749860,1755399045446,-574.40644,0.00020734,2]
[379749862,1755399045455,-175.740867,0.00020734,2]
[379749864,1755399045464,-175.740865,0.00020734,2]
[379749866,1755399045473,-480.0,0.00020734,2]
[379749868,1755399045482,-177.95537248,0.00020734,2]
[379749870,1755399045491,-480.0,0.00020734,2]
[379749872,1755399045501,-480.0,0.00020734,2]
[379749882,1755399045644,-1589.67,0.00020734,2]
[379749883,1755399045654,-400.5191419,0.00020734,2]
[379749884,1755399045663,-490.74,0.00020734,2]
[379749885,1755399045672,-526.29,0.00020734,2]
[379749886,1755399045681,-480.0,0.00020734,2]
[379749888,1755399045690,-480.0,0.00020734,2]
[379749890,1755399045699,-151.0,0.00020737,2]
[379749892,1755399045708,-319.9,0.0002074,2]
[379749894,1755399045718,-351.0,0.0002078,2]
[379749896,1755399045727,-187.502872,0.0002079,2]
[379749898,1755399045737,-1000.0,0.000208,4]
[379749900,1755399045747,-894.481672,0.000208,2]
[379749902,1755399045756,-894.481672,0.000208,2]
[379749904,1755399045765,-431.9034523,0.000208,2]
[379749906,1755399045774,-431.9034523,0.000208,2]
[379749908,1755399045783,-431.9034523,0.000208,2]
[379749910,1755399045793,-293.7439445,0.000208,2]
[379749912,1755399045802,-431.9034523,0.000208,2]
[379749914,1755399045811,-160.7608968,0.000208,2]
[379749916,1755399045821,-160.7608968,0.000208,2]
[379749918,1755399045830,-431.9034523,0.000208,2]
[379749920,1755399045839,-293.7439445,0.000208,2]
[379749922,1755399045848,-698.02006557,0.000208,2]
[379749923,1755399045857,-151.0,0.00020828,2]
[379749925,1755399045866,-315.461693,0.0002083,2]
[379749927,1755399045876,-151.0,0.00020833,2]
[379749929,1755399045886,-894.481672,0.00020833,2]
[379749931,1755399045895,-894.481672,0.00020833,2]
[379749934,1755399045905,-254.568909,0.00020834,2]
[379749936,1755399045914,-894.481672,0.00020834,2]
[379749938,1755399045924,-894.481676,0.00020834,2]
[379749939,1755399045933,-235.63,0.00020839,2]
[379749941,1755399045942,-156.37978624,0.00020877,2]
[379749943,1755399045952,-319.9,0.00020885,3]
[379749945,1755399045961,-698.02006557,0.000209,2]
[379749948,1755399045972,-586.39411615,0.00020907,2]
[379749950,1755399045982,-168.0,0.00020929,2]
[379749952,1755399045991,-2702.6,0.00020946,2]
[379749954,1755399046000,-500.0,0.00020973,2]
[379749956,1755399046010,-500.0,0.00020973,2]
[379749958,1755399046020,-501.62242818,0.00020973,2]
[379749960,1755399046038,-500.0,0.00020973,2]
[379749962,1755399046047,-500.80032938,0.00020973,2]
[379749964,1755399046057,-500.71946824,0.00020973,2]
[379749966,1755399046067,-500.0,0.00020973,2]
[379749968,1755399046076,-500.0,0.00020973,2]
[379749970,1755399046086,-500.0,0.00020973,2]
[379749972,1755399046103,-500.0,0.00020973,2]
[379749974,1755399046113,-500.0,0.00020973,2]
[379749975,1755399046122,-500.0,0.00020973,2]
[379749977,1755399046132,-500.0,0.00020973,2]
[379749979,1755399046144,-501.23763847,0.00020973,2]
[379749981,1755399046154,-501.25711225,0.00020973,2]
[379749983,1755399046164,-500.81412488,0.00020973,2]
[379749985,1755399046173,-500.0,0.00020973,2]
[379749987,1755399046182,-500.0,0.00020973,2]
[379749989,1755399046192,-500.0,0.00020973,2]
[379749991,1755399046201,-500.0,0.00020973,2]
[379749993,1755399046211,-501.67988707,0.00020973,2]
[379749995,1755399046223,-253.18239439,0.00020973,2]
[379749997,1755399046243,-500.0,0.00020973,2]
[379749999,1755399046254,-226.42208039,0.00020973,2]
[379750001,1755399046263,-500.0,0.00020973,2]
[379750003,1755399046272,-501.26611666,0.00020973,2]
[379750005,1755399046283,-500.93945819,0.00020973,2]
[379750007,1755399046293,-506.14563094,0.00020973,2]
[379750009,1755399046302,-439.85702049,0.00020973,2]
[379750011,1755399046313,-209.45680146,0.00020973,2]
[379750013,1755399046323,-500.0,0.00020973,2]
[379750015,1755399046334,-501.68781342,0.00020973,2]
[379750017,1755399046344,-500.0,0.00020973,2]
[379750019,1755399046353,-501.08717706,0.00020973,2]
[379750021,1755399046364,-500.0,0.00020973,2]
[379750023,1755399046373,-500.0,0.00020973,2]
[379750025,1755399046384,-500.58021647,0.00020973,2]
[379750027,1755399046393,-500.0,0.00020973,2]
[379750029,1755399046402,-200.0,0.00020975,20]
[379750031,1755399046411,-200.0,0.00020975,20]
[379750033,1755399046421,-200.0,0.00020975,20]
[379750035,1755399046430,-200.0,0.00020975,20]
[379750037,1755399046439,-200.0,0.00020975,20]
[379750039,1755399046449,-200.0,0.00020975,20]
[379750041,1755399046459,-200.0,0.00020975,20]
[379750043,1755399046468,-200.0,0.00020975,20]
[379750045,1755399046477,-200.0,0.00020975,20]
[379750047,1755399046486,-200.0,0.00020975,20]
[379750049,1755399046495,-600.0,0.00020975,20]
[379750051,1755399046504,-157.033751,0.00020983,2]
[379750053,1755399046513,-168.0,0.00020989,2]
[379750055,1755399046522,-100000.0,0.0002099,2]
[379750057,1755399046531,-201.15189442,0.00020999,2]
[379750059,1755399046540,-161.0584732,0.00020999,2]
[379750061,1755399046549,-400.82151402,0.00021,2]
[379750063,1755399046558,-323.29795255,0.00021,2]
[379750065,1755399046567,-3000.0,0.00021,2]
[379750067,1755399046577,-311026.58,0.00021,2]
[379750069,1755399046586,-151.0,0.00021,3]
[379750071,1755399046595,-151.0,0.00021,4]
[379750073,1755399046604,-151.0,0.00021,4]
[379750075,1755399046613,-151.0,0.00021,3]
[379750077,1755399046623,-480.0,0.00021004,2]
[379750079,1755399046632,-480.0,0.00021004,2]
[379750081,1755399046642,-828.71,0.00021004,2]
[379750083,1755399046652,-1243.05,0.00021005,2]
[379750085,1755399046662,-480.0,0.00021005,2]
[379750087,1755399046671,-631.2,0.00021005,2]
[379750089,1755399046680,-1167.4,0.00021005,2]
[379750091,1755399046690,-480.0,0.00021005,2]
[379750093,1755399046699,-618.63,0.00021005,2]
[379750095,1755399046708,-480.0,0.00021005,2]
[379750097,1755399046717,-480.0,0.00021005,2]
[379750099,1755399046726,-480.0,0.00021005,2]
[379750101,1755399046736,-530.84,0.00021005,2]
[379750103,1755399046745,-480.0,0.00021006,2]
[379750105,1755399046754,-480.64,0.00021006,2]
[379750107,1755399046770,-480.0,0.00021006,2]
[379750109,1755399046785,-480.0,0.00021006,2]
[379750111,1755399046794,-1745.0,0.00021006,2]
[379750113,1755399046803,-480.0,0.00021006,2]
[379750115,1755399046816,-3264.95,0.00021006,2]
[379750117,1755399046826,-480.0,0.00021006,2]
[379750119,1755399046836,-480.0,0.00021006,2]
[379750121,1755399046845,-480.0,0.00021006,2]
[379750123,1755399046855,-1105.45,0.00021006,2]
[379750125,1755399046864,-480.0,0.00021006,2]
[379750127,1755399046874,-480.0,0.00021006,2]
[379750129,1755399046883,-480.0,0.00021006,2]
[379750131,1755399046893,-480.0,0.00021006,2]
[379750133,1755399046902,-480.0,0.00021006,2]
[379750135,1755399046915,-480.0,0.00021006,2]
[379750137,1755399046924,-848.53,0.00021006,2]
[379750139,1755399046934,-480.0,0.00021006,2]
[379750141,1755399046943,-651.68,0.00021006,2]
[379750143,1755399046952,-480.0,0.00021006,2]
[379750144,1755399046961,-500.0,0.00021006,2]
[379750146,1755399046971,-480.0,0.00021006,2]
[379750148,1755399046980,-480.0,0.00021006,2]
[379750150,1755399046990,-480.0,0.00021006,2]
[379750152,1755399046999,-891.0,0.00021007,2]
[379750154,1755399047008,-480.0,0.00021007,2]
[379750156,1755399047018,-480.0,0.00021007,2]
[379750159,1755399047028,-480.0,0.00021007,2]
[379750160,1755399047037,-480.0,0.00021007,2]
[379750162,1755399047046,-480.0,0.00021007,2]
[379750165,1755399047056,-480.0,0.00021007,2]
[379750167,1755399047065,-629.45041816,0.00021007,2]
[379750169,1755399047074,-497.14,0.00021007,2]
[379750171,1755399047083,-480.0,0.00021007,2]
[379750172,1755399047094,-480.0,0.00021007,2]
[379750174,1755399047103,-480.0,0.00021007,2]
[379750176,1755399047112,-480.0,0.00021007,2]
[379750178,1755399047121,-480.0,0.00021007,2]
[379750180,1755399047131,-480.0,0.00021007,2]
[379750182,1755399047140,-480.0,0.00021007,2]